bitfinex-derivatives/quotes_BTCF0:USTF0_20240905
["timestamp","ask_amount","ask_price","bid_price","bid_amount"]
[1725524870141,0.40689356,57204.0,57203.0,0.088412]
[1725524871044,0.0973,57204.0,57203.0,0.088412]
[1725524871950,0.4581,57204.0,57203.0,0.088412]
[1725524872251,0.5581,57204.0,57203.0,0.088412]
[1725524872550,0.5721,57204.0,57203.0,0.088412]
[1725524873546,0.4721,57204.0,57203.0,0.088412]
[1725524874054,0.5721,57204.0,57203.0,0.088412]
[1725524878947,0.4721,57204.0,57203.0,0.088412]
[1725524879151,0.4721,57204.0,57203.0,0.188412]
[1725524881760,0.4231,57204.0,57203.0,0.188412]
[1725524883551,0.3748,57204.0,57203.0,0.188412]
[1725524883758,0.4748,57204.0,57203.0,0.088412]
[1725524885047,0.3748,57204.0,57203.0,0.188412]
[1725524885255,0.014,57204.0,57203.0,0.188412]
[1725524886157,0.014,57204.0,57203.0,0.275824]
[1725524887262,0.3748,57204.0,57203.0,0.175824]
[1725524887557,0.3748,57204.0,57203.0,0.088412]
[1725524887763,0.4748,57204.0,57203.0,0.088412]
[1725524888952,0.56221,57204.0,57203.0,0.088412]
[1725524889154,0.56221,57204.0,57203.0,0.001]
[1725524889552,0.68439356,57204.0,57203.0,0.001]
[1725524890657,0.56221,57204.0,57203.0,0.001]
[1725524896662,0.92301,57204.0,57203.0,0.001]
[1725524896962,0.92301,57204.0,57203.0,0.00258]
[1725524898261,0.20141,57204.0,57203.0,0.00258]
[1725524898467,0.92301,57204.0,57203.0,0.00258]
[1725524901169,0.82301,57204.0,57203.0,0.10258]
[1725524902166,0.82301,57204.0,57203.0,0.189992]
[1725524903071,0.92301,57204.0,57203.0,0.089992]
[1725524906161,0.82301,57204.0,57203.0,0.089992]
[1725524906566,0.3748,57204.0,57203.0,0.089992]
[1725524906766,0.3748,57204.0,57203.0,0.183892]
[1725524906767,0.014,57204.0,57203.0,0.183892]
[1725524907666,0.014,57204.0,57203.0,1.395744]
[1725524907868,0.11867411,57204.0,57203.0,1.395744]
[1725524909876,0.11866745,57204.0,57203.0,1.395744]
[1725524910268,0.014,57204.0,57203.0,1.395744]
[1725524911384,0.014,57204.0,57203.0,1.495744]
[1725524914367,0.11866745,57204.0,57203.0,1.495744]
[1725524916276,0.014,57204.0,57203.0,1.495744]
[1725524917481,0.014,57204.0,57203.0,0.895744]
[1725524920282,0.014,57204.0,57203.0,0.983156]
[1725524920586,0.014,57204.0,57203.0,0.458716]
[1725524920876,0.014,57204.0,57203.0,1.583156]
[1725524924473,0.014,57204.0,57203.0,0.983156]
[1725524928683,0.014,57204.0,57203.0,0.458716]
[1725524929276,0.10666745,57206.0,57205.0,0.174818]
[1725524929586,0.10666745,57206.0,57205.0,0.176818]
[1725524930681,0.11766745,57206.0,57205.0,0.177818]
[1725524930885,0.13166745,57206.0,57205.0,0.178818]
[1725524931073,0.027,57206.0,57205.0,0.178818]
[1725524932892,0.00026207,57211.0,57210.0,0.262203]
[1725524933093,0.00026207,57211.0,57210.0,0.725003]
[1725524933385,0.10502229,57211.0,57210.0,0.725003]
[1725524934082,0.10502229,57211.0,57210.0,0.726003]
[1725524934287,0.00026207,57211.0,57210.0,0.726003]
[1725524934480,0.01426207,57211.0,57210.0,0.727003]
[1725524937075,0.01426207,57211.0,57210.0,0.75783107]
[1725524941288,0.01426207,57211.0,57210.0,0.48302907]
[1725524941491,0.47982229,57211.0,57210.0,0.12222907]
[1725524941693,0.40882873,57211.0,57210.0,0.03482807]
[1725524941881,1.53318873,57211.0,57210.0,0.03482807]
[1725524942188,0.087409,57205.0,57201.0,0.087414]
[1725524942389,0.20666989,57202.0,57201.0,0.087414]
[1725524942991,0.10666989,57202.0,57201.0,0.087414]
[1725524943394,0.002,57202.0,57201.0,0.1183336]
[1725524943691,0.003,57202.0,57201.0,0.1193336]
[1725524944086,0.003,57202.0,57201.0,0.1203336]
[1725524945293,0.0508,57202.0,57201.0,0.1203336]
[1725524945884,0.0508,57202.0,57201.0,0.3603336]
[1725524955002,0.003,57202.0,57201.0,0.3603336]
[1725524962311,0.0488,57202.0,57201.0,0.3603336]
[1725524965305,0.15346989,57202.0,57201.0,0.3603336]
[1725524966110,0.0488,57202.0,57201.0,0.3603336]
[1725524966809,0.10766989,57202.0,57201.0,0.3603336]
[1725524967905,0.10766989,57202.0,57201.0,0.2203336]
[1725524968416,0.003,57202.0,57201.0,0.2203336]
[1725524969708,0.3975701,57202.0,57201.0,0.1203336]
[1725524970111,0.4849831,57202.0,57201.0,0.1203336]
[1725524971109,0.60709798,57202.0,57201.0,0.1203336]
[1725524971313,0.60720848,57202.0,57201.0,0.1203336]
[1725524971515,0.52779845,57202.0,57201.0,0.1203336]
[1725524971919,0.52780138,57202.0,57201.0,0.1203336]
[1725524972624,0.52780138,57202.0,57201.0,0.2203336]
[1725524973912,0.16700138,57202.0,57201.0,0.2203336]
[1725524974113,0.52780138,57202.0,57201.0,0.2203336]
[1725524975410,0.48498603,57202.0,57201.0,0.2203336]
[1725524982124,0.71521696,57202.0,57201.0,0.0329196]
[1725524982323,0.67239903,57202.0,57201.0,0.0329196]
[1725524982527,1.79687903,57202.0,57201.0,0.0329196]
[1725524982722,0.17483,57201.0,57200.0,0.02426207]
[1725524983024,0.29952206,57201.0,57200.0,0.02426207]
[1725524984527,0.29952206,57201.0,57200.0,0.05641362]
[1725524985230,0.30252206,57201.0,57200.0,0.05741362]
[1725524985422,0.30252206,57201.0,57200.0,0.05841362]
[1725524986124,0.21510706,57201.0,57200.0,0.05841362]
[1725524986829,0.29442283,57201.0,57200.0,0.05841362]
[1725524987031,0.29442601,57201.0,57200.0,0.05841362]
[1725524989029,0.65522601,57201.0,57200.0,0.05841362]
[1725524990936,0.65522601,57201.0,57200.0,0.14582962]
[1725524991327,0.53309121,57201.0,57200.0,0.14582962]
[1725524994327,0.53309121,57201.0,57200.0,0.14740962]
[1725524995432,0.65522601,57201.0,57200.0,0.14740962]
[1725524997432,0.53309121,57201.0,57200.0,0.14740962]
[1725524998428,0.57590944,57201.0,57200.0,0.14740962]
[1725524999035,0.53309121,57201.0,57200.0,0.14740962]
[1725524999540,0.57590918,57201.0,57200.0,0.14740962]
[1725525000239,0.44239418,57201.0,57200.0,0.14740962]
[1725525000537,0.44239418,57201.0,57200.0,0.42224162]
[1725525000538,0.03877621,57201.0,57200.0,0.42224162]
[1725525001451,0.005,57201.0,57200.0,0.42224162]
[1725525002636,0.19794793,57201.0,57200.0,0.33519516]
[1725525002941,0.42420574,57201.0,57200.0,0.33519516]
[1725525003637,0.19794793,57201.0,57200.0,0.36620003]
[1725525004236,0.13524436,57201.0,57200.0,0.36620003]
[1725525006832,0.13524436,57201.0,57200.0,0.17878403]
[1725525007237,0.49604436,57201.0,57200.0,0.09136803]
[1725525007442,0.55874793,57201.0,57200.0,0.09136803]
[1725525010445,0.19794793,57201.0,57200.0,0.09136803]
[1725525010639,0.03877292,57201.0,57200.0,0.09136803]
[1725525011752,0.005,57201.0,57200.0,0.09136803]
[1725525012248,0.005,57201.0,57200.0,0.19136803]
[1725525013048,0.005,57201.0,57200.0,0.09136803]
[1725525013049,0.03877274,57201.0,57200.0,0.09136803]
[1725525014648,0.03877274,57201.0,57200.0,0.19136803]
[1725525016252,0.03877274,57201.0,57200.0,0.09136803]
[1725525016549,0.48698774,57201.0,57200.0,0.09136803]
[1725525017442,0.60910643,57201.0,57200.0,0.09136803]
[1725525017645,0.59251393,57201.0,57200.0,0.09136803]
[1725525017847,0.64618128,57201.0,57200.0,0.087416]
[1725525020655,0.64618714,57201.0,57200.0,0.087416]
[1725525020852,0.087418,57199.0,57198.0,0.03114696]
[1725525021059,0.08742,57198.0,57197.0,0.087421]
[1725525021358,0.21768227,57198.0,57197.0,0.087421]
[1725525021545,0.22168227,57198.0,57197.0,0.087421]
[1725525021747,0.21768227,57198.0,57197.0,0.087421]
[1725525021957,0.21768421,57198.0,57197.0,0.087421]
[1725525022452,0.23168421,57198.0,57197.0,0.088421]
[1725525022653,0.8820461,57198.0,57197.0,0.088421]
[1725525022858,0.8820461,57198.0,57197.0,0.089421]
[1725525023151,0.65519408,57198.0,57197.0,0.089421]
[1725525025848,0.53881408,57198.0,57197.0,0.089421]
[1725525026859,0.49599554,57198.0,57197.0,0.089421]
[1725525029355,0.61819108,57198.0,57197.0,0.089421]
[1725525032448,0.53881427,57198.0,57197.0,0.089421]
[1725525032656,0.49599554,57198.0,57197.0,0.089421]
[1725525033356,0.53881518,57198.0,57197.0,0.089421]
[1725525035149,0.6182035,57198.0,57197.0,0.089421]
[1725525035351,0.40857554,57198.0,57197.0,0.276842]
[1725525035557,0.40857554,57198.0,57197.0,0.364263]
[1725525035558,0.014,57198.0,57197.0,0.364263]
[1725525037061,0.00088,57210.0,57209.0,0.087403]
[1725525037261,0.00088,57210.0,57209.0,0.187403]
[1725525037262,0.12226242,57210.0,57209.0,0.187403]
[1725525037467,0.03376906,57210.0,57209.0,0.187403]
[1725525038459,0.03376906,57210.0,57209.0,0.188403]
[1725525039458,0.03676906,57210.0,57209.0,0.189403]
[1725525040256,0.03676906,57210.0,57209.0,0.089403]
[1725525040565,0.003,57210.0,57209.0,0.189403]
[1725525040770,0.003,57210.0,57209.0,0.22134637]
[1725525040969,0.19593146,57210.0,57209.0,0.13194337]
[1725525041267,0.19593146,57210.0,57209.0,0.21934637]
[1725525041870,0.16216395,57210.0,57209.0,0.21934637]
[1725525047869,0.003,57210.0,57209.0,0.21934637]
[1725525050267,0.03676757,57210.0,57209.0,0.21934637]
[1725525050777,0.03676757,57210.0,57209.0,0.30874937]
[1725525050972,0.03676757,57210.0,57209.0,0.39615237]
[1725525051178,0.003,57210.0,57209.0,0.39615237]
[1725525055579,0.10752194,57210.0,57209.0,0.39615237]
[1725525055874,0.10752194,57210.0,57209.0,0.2127869]
[1725525055875,0.19590618,57210.0,57209.0,0.2127869]
[1725525056084,0.19690618,57210.0,57209.0,0.3137869]
[1725525056578,0.14203858,57226.0,57210.0,0.5244]
[1725525056784,0.14203858,57226.0,57225.0,0.102]
[1725525056979,0.14203858,57226.0,57225.0,0.07837867]
[1725525057381,0.087377,57226.0,57225.0,0.07837867]
[1725525057883,0.087377,57226.0,57225.0,0.16575667]
[1725525058082,0.087377,57226.0,57225.0,0.16675667]
[1725525058982,0.3608,57228.0,57227.0,0.087375]
[1725525059287,0.3608,57228.0,57227.0,0.089375]
[1725525059585,0.42348477,57228.0,57227.0,0.089375]
[1725525060280,0.42348477,57228.0,57227.0,0.090375]
[1725525060483,0.52348477,57228.0,57227.0,0.091375]
[1725525061289,0.61085877,57228.0,57227.0,0.091375]
[1725525061587,0.66450472,57228.0,57227.0,0.091375]
[1725525061884,0.66450472,57228.0,57227.0,0.004]
[1725525062890,0.66450472,57228.0,57227.0,0.091375]
[1725525064187,0.66450472,57228.0,57227.0,0.12251972]
[1725525064488,0.70730534,57228.0,57227.0,0.12251972]
[1725525065183,0.08738,57224.0,57220.0,0.00026207]
[1725525065386,0.189384,57221.0,57220.0,0.00026207]
[1725525065574,0.37321457,57221.0,57220.0,0.00026207]
[1725525065774,1.56879534,57221.0,57208.0,0.1]
[1725525065992,0.17646351,57209.0,57208.0,0.187404]
[1725525066283,0.27291008,57209.0,57208.0,0.187404]
[1725525066491,0.09844657,57209.0,57208.0,0.087404]
[1725525066691,0.14564657,57209.0,57208.0,0.087404]
[1725525066889,0.19444657,57209.0,57208.0,0.087404]
[1725525067184,0.19444657,57209.0,57208.0,0.088404]
[1725525067990,0.19444657,57209.0,57208.0,0.089404]
[1725525068776,0.19444657,57209.0,57208.0,0.002]
[1725525068777,0.28187446,57209.0,57208.0,0.002]
[1725525068979,0.53648842,57209.0,57208.0,0.002]
[1725525069293,1.82977856,57209.0,57203.0,0.00026207]
[1725525069591,0.65471193,57204.0,57203.0,0.00026207]
[1725525069796,0.81388749,57204.0,57203.0,0.00026207]
[1725525069993,0.95388749,57204.0,57203.0,0.00026207]
[1725525070292,0.76197556,57204.0,57203.0,0.00026207]
[1725525070593,0.76197556,57204.0,57203.0,0.00126207]
[1725525070796,0.84938556,57204.0,57203.0,0.00126207]
[1725525071893,0.85138556,57204.0,57203.0,0.00226207]
[1725525073787,0.85140492,57204.0,57203.0,0.00226207]
[1725525076701,0.49060492,57204.0,57203.0,0.00226207]
[1725525076994,0.85140492,57204.0,57203.0,0.00226207]
[1725525077995,0.69221,57204.0,57203.0,0.00226207]
[1725525078197,0.69221,57204.0,57203.0,0.08967407]
[1725525080493,0.33141,57204.0,57203.0,0.08967407]
[1725525080698,0.69221,57204.0,57203.0,0.08967407]
[1725525088100,0.3648,57204.0,57203.0,0.08967407]
[1725525090107,0.004,57204.0,57203.0,0.08967407]
[1725525090403,0.004,57204.0,57203.0,0.09125407]
[1725525092299,0.004,57204.0,57203.0,0.17866607]
[1725525092508,0.004,57204.0,57203.0,0.22806607]
[1725525093115,0.004,57204.0,57203.0,0.20525947]
[1725525093116,0.10047439,57204.0,57203.0,0.20525947]
[1725525093508,0.10047439,57204.0,57203.0,0.11784747]
[1725525093815,0.16317824,57204.0,57203.0,0.11784747]
[1725525094004,0.16317824,57204.0,57203.0,0.21784747]
[1725525096309,0.10047439,57204.0,57203.0,0.21784747]
[1725525100513,0.10047439,57204.0,57203.0,0.16844747]
[1725525101117,0.004,57204.0,57203.0,0.16844747]
[1725525105520,0.004,57204.0,57203.0,0.15999092]
[1725525108128,0.16318452,57204.0,57203.0,0.15999092]
[1725525108325,0.16318452,57204.0,57203.0,0.24740292]
[1725525108530,0.39001297,57204.0,57203.0,0.29270292]
[1725525109828,0.39015267,57204.0,57203.0,0.29270292]
[1725525110217,0.16318452,57204.0,57203.0,0.29270292]
[1725525114233,0.39019438,57204.0,57203.0,0.29270292]
[1725525114532,0.16318298,57204.0,57203.0,0.29270292]
[1725525115136,0.004,57204.0,57203.0,0.24740292]
[1725525115334,0.004,57204.0,57203.0,0.15999092]
[1725525116537,0.04681331,57204.0,57203.0,0.15999092]
[1725525117135,0.004,57204.0,57203.0,0.15999092]
[1725525118237,0.04681328,57204.0,57203.0,0.05999092]
[1725525118740,0.13422328,57204.0,57203.0,0.00158]
[1725525119131,0.13422849,57204.0,57203.0,0.00158]
[1725525119539,0.13422849,57204.0,57203.0,0.088992]
[1725525119737,0.09141,57204.0,57203.0,0.088992]
[1725525120339,0.45221,57204.0,57203.0,0.088992]
[1725525121826,0.09141,57204.0,57203.0,0.088992]
[1725525122036,0.45221,57204.0,57203.0,0.088992]
[1725525123229,0.61141162,57204.0,57203.0,0.088992]
[1725525124043,0.61141162,57204.0,57203.0,0.087412]
[1725525125539,0.61141162,57204.0,57203.0,0.187412]
[1725525127435,0.52400162,57204.0,57203.0,0.187412]
[1725525127636,0.52399696,57204.0,57203.0,0.187412]
[1725525130143,0.40761642,57204.0,57203.0,0.187412]
[1725525132935,0.5473589,57204.0,57203.0,0.187412]
[1725525134044,0.40761642,57204.0,57203.0,0.187412]
[1725525134240,0.40761642,57204.0,57203.0,0.087412]
[1725525136154,0.10048471,57204.0,57203.0,0.087412]
[1725525136450,0.40761642,57204.0,57203.0,0.087412]
[1725525138442,0.61849507,57204.0,57203.0,0.088992]
[1725525139646,0.46128478,57204.0,57203.0,0.088992]
[1725525141553,0.56128478,57204.0,57203.0,0.088992]
[1725525142253,0.5612857,57204.0,57203.0,0.088992]
[1725525142644,0.56128568,57204.0,57203.0,0.088992]
[1725525142953,0.80594563,57204.0,57203.0,0.088992]
[1725525143745,0.80594563,57204.0,57203.0,0.00158]
[1725525143746,0.89335563,57204.0,57203.0,0.00158]
[1725525143947,1.3479587,57204.0,57203.0,0.00158]
[1725525144352,1.5226368,57204.0,57203.0,0.00158]
[1725525144756,1.40264958,57204.0,57203.0,0.00158]
[1725525145253,0.174824,57203.0,57202.0,0.02866123]
[1725525145458,0.087418,57199.0,57198.0,0.00026207]
[1725525145650,0.70943028,57199.0,57198.0,0.00026207]
[1725525146049,0.75263028,57199.0,57198.0,0.00026207]
[1725525146551,0.75563028,57199.0,57198.0,0.00126207]
[1725525147161,0.087426,57194.0,57193.0,0.07308825]
[1725525147360,0.78320637,57194.0,57193.0,0.07308825]
[1725525148355,0.78320637,57194.0,57193.0,0.10423162]
[1725525149258,0.78720637,57194.0,57193.0,0.10623162]
[1725525150651,0.68720637,57194.0,57193.0,0.10623162]
[1725525151146,0.32640637,57194.0,57193.0,0.10623162]
[1725525151459,0.32640637,57194.0,57193.0,0.002]
[1725525151860,0.32640637,57194.0,57193.0,0.089426]
[1725525152157,0.25463828,57194.0,57193.0,0.089426]
[1725525153357,0.195426,57194.0,57193.0,0.089426]
[1725525159367,0.556226,57194.0,57193.0,0.089426]
[1725525159762,0.556226,57194.0,57193.0,0.002]
[1725525160362,0.71545078,57194.0,57193.0,0.002]
[1725525162873,0.71545326,57194.0,57193.0,0.002]
[1725525163772,0.72345326,57194.0,57193.0,0.002]
[1725525166057,0.72345326,57194.0,57193.0,0.089427]
[1725525166256,0.62345326,57194.0,57193.0,0.089427]
[1725525167871,0.623451,57194.0,57193.0,0.089427]
[1725525168473,0.464226,57194.0,57193.0,0.089427]
[1725525168971,0.103426,57194.0,57193.0,0.089427]
[1725525169170,0.464226,57194.0,57193.0,0.089427]
[1725525170371,0.3768,57194.0,57193.0,0.089427]
[1725525171482,0.4768,57194.0,57193.0,0.089427]
[1725525173264,0.3768,57194.0,57193.0,0.089427]
[1725525175171,0.3768,57194.0,57193.0,0.189427]
[1725525175772,0.3768,57194.0,57193.0,0.089427]
[1725525177168,0.464226,57194.0,57193.0,0.002]
[1725525177477,0.551652,57194.0,57193.0,0.002]
[1725525177668,0.59448046,57194.0,57193.0,0.002]
[1725525177972,0.64816507,57194.0,57193.0,0.002]
[1725525178280,0.64816507,57194.0,57188.0,0.00017472]
[1725525178281,0.087433,57189.0,57188.0,0.00017472]
[1725525178581,0.087433,57189.0,57168.0,0.00885791]
[1725525178582,0.1,57175.0,57168.0,0.00885791]
[1725525178769,0.104,57169.0,57168.0,0.087465]
[1725525178970,0.104,57169.0,57168.0,0.09619603]
[1725525179164,0.004,57169.0,57168.0,0.09619603]
[1725525179369,0.004,57169.0,57168.0,0.19619603]
[1725525179582,0.004,57169.0,57168.0,0.187465]
[1725525180282,0.016,57169.0,57168.0,0.188465]
[1725525181871,0.027,57169.0,57168.0,0.188465]
[1725525183679,0.12353246,57169.0,57168.0,0.188465]
[1725525184486,0.16983797,57169.0,57168.0,0.088465]
[1725525184777,0.22353395,57169.0,57168.0,0.088465]
[1725525186079,0.22353726,57169.0,57168.0,0.088465]
[1725525186284,0.1698401,57169.0,57168.0,0.088465]
[1725525186586,0.1718401,57169.0,57168.0,0.087465]
[1725525186974,0.1748401,57169.0,57168.0,0.088465]
[1725525187880,0.1748401,57169.0,57168.0,0.090045]
[1725525189586,0.31398997,57169.0,57168.0,0.090045]
[1725525190386,0.132,57169.0,57168.0,0.090045]
[1725525191974,0.219464,57169.0,57168.0,0.090045]
[1725525193285,0.219464,57169.0,57168.0,0.00258]
[1725525195681,0.744224,57169.0,57168.0,0.00258]
[1725525196601,0.219464,57169.0,57168.0,0.00258]
[1725525198086,0.306928,57169.0,57168.0,0.00258]
[1725525198495,0.087477,57161.0,57159.0,0.087478]
[1725525198791,0.4608,57160.0,57159.0,0.11900164]
[1725525198993,0.4648,57160.0,57159.0,0.11900164]
[1725525199883,0.552278,57160.0,57159.0,0.11900164]
[1725525200287,0.566278,57160.0,57159.0,0.03152364]
[1725525200594,0.087481,57158.0,57156.0,0.087483]
[1725525200783,0.104,57157.0,57156.0,0.087483]
[1725525200984,0.191482,57157.0,57156.0,0.087483]
[1725525201179,0.191482,57157.0,57153.0,0.087488]
[1725525201180,0.104,57157.0,57153.0,0.087488]
[1725525201486,0.3888,57160.0,57153.0,0.087488]
[1725525201487,0.104,57154.0,57153.0,0.087488]
[1725525201883,0.08749,57152.0,57150.0,0.087492]
[1725525202184,0.104,57154.0,57128.0,0.3608]
[1725525202185,0.087503,57144.0,57128.0,0.3608]
[1725525202389,0.00026232,57144.0,57143.0,0.548304]
[1725525203290,3.2e-07,57144.0,57143.0,1.312504]
[1725525203481,0.004,57151.0,57150.0,0.087493]
[1725525203686,0.004,57151.0,57150.0,0.187493]
[1725525205191,0.018,57151.0,57150.0,0.187493]
[1725525205390,0.018,57151.0,57150.0,0.087493]
[1725525205595,0.018,57151.0,57150.0,0.187493]
[1725525205792,0.032,57151.0,57150.0,0.187493]
[1725525207395,0.032,57151.0,57145.0,0.00026232]
[1725525207590,0.3608,57148.0,57147.0,0.087498]
[1725525207784,0.032,57151.0,57150.0,0.087493]
[1725525208696,0.018,57151.0,57150.0,0.087493]
[1725525209096,0.118,57151.0,57150.0,0.087493]
[1725525209998,0.132,57151.0,57150.0,0.087493]
[1725525210391,0.087495,57149.0,57145.0,0.00026232]
[1725525210592,0.004,57146.0,57145.0,0.08776332]
[1725525212484,0.018,57146.0,57145.0,0.08776332]
[1725525213188,0.032,57146.0,57145.0,0.08776332]
[1725525213694,0.20660469,57146.0,57145.0,0.08776332]
[1725525214299,0.30316761,57146.0,57145.0,0.08776332]
[1725525214486,0.12856292,57146.0,57145.0,0.08776332]
[1725525214690,0.20598691,57146.0,57145.0,0.17526432]
[1725525214898,0.12856292,57146.0,57145.0,0.17526432]
[1725525215294,0.12856292,57146.0,57145.0,0.08776332]
[1725525215894,0.48936292,57146.0,57145.0,0.08776332]
[1725525216094,0.552121,57146.0,57145.0,0.08776332]
[1725525216292,0.7435081,57146.0,57145.0,0.08776332]
[1725525216492,0.68074088,57146.0,57145.0,0.08776332]
[1725525217399,0.48936292,57146.0,57145.0,0.08776332]
[1725525218005,0.74350738,57146.0,57145.0,0.08776332]
[1725525218398,0.55212942,57146.0,57145.0,0.08776332]
[1725525218602,0.087502,57144.0,57112.0,0.3608]
[1725525218906,0.3608,57128.0,57126.0,0.24]
[1725525219088,0.3608,57128.0,57122.0,0.087536]
[1725525219089,0.19123906,57123.0,57122.0,0.087536]
[1725525219293,0.25345414,57123.0,57122.0,1.048336]
[1725525219506,0.16870111,57123.0,57122.0,1.573536]
[1725525219800,0.01488124,57123.0,57122.0,1.60500568]
[1725525220307,0.01488124,57123.0,57122.0,1.84500568]
[1725525220499,0.004,57123.0,57122.0,1.84500568]
[1725525221304,0.004,57123.0,57122.0,0.39226968]
[1725525221501,0.004,57123.0,57122.0,0.03146968]
[1725525221699,0.004,57123.0,57120.0,0.0498]
[1725525221895,0.004,57121.0,57120.0,0.0498]
[1725525223100,0.004,57121.0,57120.0,0.03223577]
[1725525223101,0.258,57121.0,57120.0,0.03223577]
[1725525223308,0.258,57121.0,57109.0,0.3608]
[1725525223309,0.087539,57120.0,57109.0,0.3608]
[1725525223505,0.004,57114.0,57109.0,0.3608]
[1725525223695,0.004,57114.0,57110.0,0.087554]
[1725525223897,0.004,57114.0,57113.0,0.07751961]
[1725525225193,0.244,57114.0,57113.0,0.03091961]
[1725525225395,0.258,57114.0,57108.0,0.0479]
[1725525225597,0.3608,57113.0,57110.0,0.087553]
[1725525225798,0.3608,57113.0,57110.0,0.062553]
[1725525226910,0.3708,57113.0,57110.0,0.062553]
[1725525228300,0.3828,57113.0,57110.0,0.062553]
[1725525229202,0.3828,57113.0,57108.0,0.0479]
[1725525229203,0.087551,57112.0,57108.0,0.0479]
[1725525229503,0.004,57109.0,57106.0,0.08756]
[1725525229707,0.6048,57107.0,57106.0,0.09613867]
[1725525230007,0.6008,57107.0,57100.0,0.24]
[1725525230212,0.6008,57107.0,57105.0,0.087561]
[1725525230411,0.6008,57107.0,57100.0,0.00878808]
[1725525230711,0.6008,57107.0,57100.0,0.08757]
[1725525230712,0.004,57101.0,57100.0,0.08757]
[1725525230910,0.004,57101.0,57100.0,0.09632916]
[1725525231313,0.004,57101.0,57099.0,0.03204398]
[1725525231510,0.004,57100.0,57094.0,0.00859094]
[1725525231704,0.004,57095.0,57094.0,0.00859094]
[1725525231905,0.327575,57097.0,57094.0,0.09616994]
[1725525231906,0.087576,57096.0,57094.0,0.09616994]
[1725525232605,0.087576,57096.0,57094.0,0.087579]
[1725525232808,0.331578,57095.0,57093.0,0.03100939]
[1725525233011,0.244,57095.0,57094.0,0.087579]
[1725525233201,0.004,57095.0,57094.0,0.087579]
[1725525234413,0.3648,57096.0,57095.0,0.087577]
[1725525235018,0.3608,57096.0,57095.0,0.087577]
[1725525235613,0.3888,57096.0,57095.0,0.087577]
[1725525236314,0.028,57096.0,57095.0,0.087577]
[1725525236907,0.028,57096.0,57095.0,0.175154]
[1725525237119,0.004,57100.0,57099.0,0.087571]
[1725525237416,0.004,57100.0,57099.0,1.827571]
[1725525238013,0.004,57100.0,57099.0,0.327571]
[1725525238411,0.018,57100.0,57099.0,0.087571]
[1725525238611,0.018,57100.0,57099.0,0.327571]
[1725525239013,0.032,57100.0,57099.0,0.327571]
[1725525239412,0.032,57100.0,57091.0,0.45368]
[1725525239413,0.5254,57099.0,57077.0,0.3608]
[1725525239616,0.5254,57099.0,57070.0,0.05224579]
[1725525239617,0.3608,57083.0,57082.0,0.087597]
[1725525239812,0.6008,57083.0,57082.0,0.087597]
[1725525240013,0.3608,57083.0,57082.0,0.087597]
[1725525240419,0.3608,57083.0,57082.0,0.327597]
[1725525240717,0.00026255,57088.0,57087.0,0.087589]
[1725525240912,0.00026255,57088.0,57087.0,0.327589]
[1725525241319,0.00026255,57088.0,57087.0,0.087589]
[1725525242227,0.01426255,57088.0,57087.0,0.088589]
[1725525243821,0.02826255,57088.0,57087.0,0.089589]
[1725525244021,0.02826255,57088.0,57087.0,0.12148018]
[1725525244329,0.02826255,57088.0,57087.0,1.48700018]
[1725525246333,0.02826255,57088.0,57087.0,0.36148018]
[1725525248725,0.02826255,57088.0,57087.0,1.48700018]
[1725525249423,0.02826255,57088.0,57087.0,1.53924597]
[1725525250419,0.02826255,57088.0,57087.0,1.48700018]
[1725525250629,0.08202993,57088.0,57087.0,1.48700018]
[1725525251325,0.08202993,57088.0,57087.0,1.57458918]
[1725525251525,0.02826255,57088.0,57087.0,1.57458918]
[1725525251725,0.02826255,57088.0,57087.0,1.90217818]
[1725525251935,0.05414742,57088.0,57087.0,1.90217818]
[1725525253019,0.04236302,57088.0,57087.0,1.90217818]
[1725525253228,0.15628977,57090.0,57089.0,0.175172]
[1725525253429,0.00026255,57093.0,57091.0,0.087583]
[1725525253635,0.17343967,57093.0,57091.0,0.087583]
[1725525253821,0.17343967,57093.0,57092.0,0.415164]
[1725525254137,0.09691329,57093.0,57092.0,0.415164]
[1725525254335,0.09691329,57093.0,57092.0,1.540644]
[1725525254531,0.27077059,57093.0,57092.0,1.628226]
[1725525255434,0.25408441,57097.0,57096.0,0.175152]
[1725525255435,0.19126601,57097.0,57096.0,0.175152]
[1725525255626,0.22765096,57097.0,57096.0,0.415152]
[1725525255826,0.05375836,57097.0,57096.0,1.540592]
[1725525256643,0.05375836,57097.0,57096.0,1.300592]
[1725525256833,0.05375836,57097.0,57096.0,1.453016]
[1725525257232,0.05375836,57097.0,57096.0,0.328576]
[1725525257540,0.11657442,57097.0,57096.0,0.328576]
[1725525257727,0.05375836,57097.0,57096.0,0.328576]
[1725525257928,0.06775836,57097.0,57096.0,0.329576]
[1725525258330,0.06775836,57097.0,57096.0,0.36069645]
[1725525258331,0.25916226,57097.0,57096.0,0.36069645]
[1725525258639,0.014,57097.0,57096.0,0.36069645]
[1725525258825,0.0607,57097.0,57096.0,0.36069645]
[1725525259431,0.0627,57097.0,57096.0,0.36069645]
[1725525259840,0.1108,57097.0,57096.0,0.36069645]
[1725525260832,0.4716,57097.0,57096.0,0.36069645]
[1725525262733,0.604774,57097.0,57096.0,0.03312045]
[1725525262941,0.844774,57097.0,57096.0,0.002]
[1725525263846,0.604774,57097.0,57096.0,0.002]
[1725525265348,0.844774,57097.0,57096.0,0.002]
[1725525266746,2.057788,57097.0,57096.0,0.002]
[1725525267052,1.457788,57097.0,57096.0,0.002]
[1725525267445,2.057788,57097.0,57096.0,0.002]
[1725525267745,1.58713452,57097.0,57096.0,0.002]
[1725525267945,2.11257452,57097.0,57096.0,0.002]
[1725525268848,2.20014852,57097.0,57096.0,0.002]
[1725525269051,0.087596,57083.0,57082.0,0.00026255]
[1725525269258,1.053196,57083.0,57082.0,0.03222208]
[1725525269457,0.813196,57083.0,57082.0,0.03222208]
[1725525270342,0.815196,57083.0,57082.0,0.03322208]
[1725525270660,0.7276,57083.0,57082.0,0.12081908]
[1725525271154,0.3668,57083.0,57082.0,0.12081908]